[Event "EYCC Open-U14 2019"]
[Site "Bratislava"]
[Date "2019.08.06"]
[Round "5.32"]
[White "Levin, Guy"]
[Black "Hulka, Valentyn"]
[Result "1-0"]
[ECO "D78"]
[WhiteElo "2005"]
[BlackElo "1788"]
[Annotator "NA"]
[PlyCount "117"]
[EventDate "2019.08.02"]
[EventType "swiss"]
[EventCountry "SVK"]
[SourceTitle "playchess.com"]
[Source "ChessBase"]
[SourceQuality "1"]
[TimeControl "40/5400+30:1800+30"]

1. Nf3 {[%emt 0:00:00]} Nf6 {[%emt 0:00:00]} 2. g3 {[%emt 0:00:00]} g6 {[%emt 0:00:13]} 3. Bg2 {[%emt 0:00:00]} Bg7 {[%emt 0:00:05]} 4. c4 {[%emt 0:00:03]} O-O {[%emt 0:00:21]} 5. O-O {[%emt 0:00:24]} d5 {[%emt 0:00:10]} 6. d4 {[%emt 0:00:36]} c6 {[%emt 0:05:42]} 7. b3 {[%emt 0:04:43]} Bf5 {[%emt 0:10:43]} 8. Nc3 {[%emt 0:01:18]} Ne4 {[%emt 0:00:09]} 9. Bb2 {[%emt 0:00:44]} Nxc3 {[%emt 0:00:40]} 10. Bxc3 {[%emt 0:00:10]} Be4 {[%emt 0:00:03]} 11. e3 {[%emt 0:04:23]} Nd7 {[%emt 0:00:28]} 12. Qe2 {[%emt 0:01:59]} Rb8 {[%emt 0:20:25]} 13. Rac1 {[%emt 0:04:56]} dxc4 {[%emt 0:09:25]} 14. bxc4 {[%emt 0:00:24]} c5 {[%emt 0:00:10]} 15. Rfd1 {[%emt 0:05:22]} Qc7 {[%emt 0:01:04]} 16. Bh3 {[%emt 0:12:42]} Bc6 {[%emt 0:05:52]} 17. d5 {[%emt 0:10:26]} Ba4 {[%emt 0:00:04]} 18. Rd3 {[%emt 0:00:07]} Bxc3 {[%emt 0:06:53]} 19. Rdxc3 {[%emt 0:01:05]} a6 {[%emt 0:09:44]} 20. e4 {[%emt 0:01:25]} Ne5 {[%emt 0:03:16]} 21. Nxe5 {[%emt 0:08:52]} Qxe5 {[%emt 0:00:07]} 22. Qe3 {[%emt 0:00:08]} Qc7 {[%emt 0:02:37]} 23. f4 {[%emt 0:03:11]} Rfd8 {[%emt 0:03:32]} 24. e5 {[%emt 0:01:16]} Bd7 {[%emt 0:00:30]} 25. e6 {[%emt 0:01:12]} fxe6 {[%emt 0:00:11]} 26. Bxe6+ {[%emt 0:00:04]} Bxe6 {[%emt 0:00:08]} 27. Qxe6+ {[%emt 0:00:10]} Kf8 {[%emt 0:00:18]} 28. Re3 {[%emt 0:01:29]} Qd6 {[%emt 0:00:08]} 29. Qh3 {[%emt 0:00:14]} Kg8 {[%emt 0:07:25]} 30. Re6 {[%emt 0:00:20]} Qd7 {[%emt 0:00:28]} 31. Qh4 {[%emt 0:01:34]} Re8 {[%emt 0:01:31]} 32. Rce1 {[%emt 0:00:11]} Qa4 {[%emt 0:01:08]} 33. Rxe7 {[%emt 0:03:11]} Rxe7 {[%emt 0:00:06]} 34. Rxe7 {[%emt 0:02:00]} Qd1+ {[%emt 0:00:08]} 35. Kg2 {[%emt 0:00:15]} Qc2+ {[%emt 0:00:07]} 36. Kh3 {[%emt 0:00:23]} Qf5+ {[%emt 0:00:03]} 37. Qg4 {[%emt 0:00:20]} Qxg4+ {[%emt 0:00:21]} 38. Kxg4 {[%emt 0:00:02]} b5 {[%emt 0:00:09]} 39. cxb5 {[%emt 0:02:23]} axb5 {[%emt 0:00:33]} 40. d6 {[%emt 0:00:00]} c4 {[%emt 0:00:00]} 41. d7 {[%emt 0:03:27]} Kf8 {[%emt 0:00:10]} 42. Rxh7 {[%emt 0:00:08]} Rd8 {[%emt 0:00:03]} 43. Kf3 {[%emt 0:00:34]} Kg8 {[%emt 0:00:03]} 44. Re7 {[%emt 0:00:33]} Kf8 {[%emt 0:00:04]} 45. Re8+ Rxe8 {[%emt 0:00:04]} 46. dxe8=Q+ {[%emt 0:00:29]} Kxe8 {[%emt 0:00:09]} 47. Ke4 {[%emt 0:00:48]} b4 {[%emt 0:00:13]} 48. Kd4 {[%emt 0:00:24]} c3 {[%emt 0:00:04]} 49. Kd3 {[%emt 0:00:06]} Ke7 {[%emt 0:00:05]} 50. a3 {[%emt 0:00:14]} bxa3 {[%emt 0:00:10]} 51. Kxc3 {[%emt 0:00:03]} Ke6 {[%emt 0:00:09]} 52. g4 {[%emt 0:00:55]} Kd5 {[%emt 0:00:14]} 53. h4 {[%emt 0:00:13]} Ke4 {[%emt 0:00:43]} 54. h5 {[%emt 0:00:10]} gxh5 {[%emt 0:00:05]} 55. gxh5 {[%emt 0:00:06]} Kf5 {[%emt 0:00:08]} 56. Kb3 {[%emt 0:00:13]} Kf6 {[%emt 0:00:06]} 57. Kxa3 {[%emt 0:00:18]} Kg7 {[%emt 0:00:07]} 58. f5 {[%emt 0:00:06]} Kg8 {[%emt 0:01:07]} 59. Kb4 {[%emt 0:00:15]} 1-0

[Event "EYCC Open-U14 2019"]
[Site "Bratislava"]
[Date "2019.08.06"]
[Round "5.33"]
[White "Schouten, Mathias Lind"]
[Black "Liu, Casper"]
[Result "0-1"]
[ECO "B60"]
[WhiteElo "1961"]
[BlackElo "2194"]
[Annotator "NA"]
[PlyCount "55"]
[EventDate "2019.08.02"]
[EventType "swiss"]
[EventCountry "SVK"]
[SourceTitle "playchess.com"]
[Source "ChessBase"]
[SourceQuality "1"]
[TimeControl "40/5400+30:1800+30"]

1. e4 {[%emt 0:00:00]} c5 {[%emt 0:00:00]} 2. Nf3 {[%emt 0:00:00]} d6 {[%emt 0:00:00]} 3. d4 {[%emt 0:00:00]} cxd4 {[%emt 0:00:00]} 4. Nxd4 {[%emt 0:00:00]} Nf6 {[%emt 0:00:00]} 5. Nc3 {[%emt 0:00:00]} Nc6 {[%emt 0:00:00]} 6. Bg5 {[%emt 0:00:20]} Bd7 {[%emt 0:00:51]} 7. Bc4 {[%emt 0:01:48]} Qa5 {[%emt 0:04:34]} 8. Bxf6 {[%emt 0:10:19]} gxf6 {[%emt 0:00:31]} 9. Nb3 {[%emt 0:08:08]} Qg5 {[%emt 0:01:36]} 10. O-O {[%emt 0:08:47]} Rg8 {[%emt 0:06:21]} 11. g3 {[%emt 0:01:40]} Bh3 {[%emt 0:00:58]} 12. Re1 {[%emt 0:00:08]} e6 {[%emt 0:04:56]} 13. Nb5 {[%emt 0:06:22]} O-O-O {[%emt 0:00:47]} 14. N3d4 {[%emt 0:03:14]} h5 {[%emt 0:08:31]} 15. Nxc6 {[%emt 0:06:52]} bxc6 {[%emt 0:00:46]} 16. Nd4 {[%emt 0:02:42]} h4 {[%emt 0:07:03]} 17. Re3 {[%emt 0:04:24]} c5 {[%emt 0:23:18]} 18. Ba6+ {[%emt 0:22:38]} Kc7 {[%emt 0:01:19]} 19. Nf3 {[%emt 0:00:31]} Qf4 {[%emt 0:00:43]} 20. Qe1 {[%emt 0:11:51]} Rb8 {[%emt 0:05:22]} 21. Bc4 {[%emt 0:02:08]} hxg3 {[%emt 0:06:47]} 22. fxg3 {[%emt 0:01:11]} Bh6 {[%emt 0:03:39]} 23. Ra3 {[%emt 0:03:42]} Rb4 {[%emt 0:01:11]} 24. Kf2 {[%emt 0:01:29]} Qg4 {[%emt 0:01:36]} 25. Rxa7+ {[%emt 0:00:04]} Kb8 {[%emt 0:00:09]} 26. Ra3 {[%emt 0:03:35]} d5 {[%emt 0:04:34]} 27. exd5 {[%emt 0:00:56]} Qxc4 {[%emt 0:00:35]} 28. dxe6 {[%emt 0:01:11]} 0-1

[Event "EYCC Open-U14 2019"]
[Site "Bratislava"]
[Date "2019.08.06"]
[Round "5.34"]
[White "Droin, Augustin"]
[Black "Papidakis, Georgios"]
[Result "1/2-1/2"]
[ECO "C60"]
[WhiteElo "2172"]
[BlackElo "1888"]
[Annotator "NA"]
[PlyCount "95"]
[EventDate "2019.08.02"]
[EventType "swiss"]
[EventCountry "SVK"]
[SourceTitle "playchess.com"]
[Source "ChessBase"]
[SourceQuality "1"]
[TimeControl "40/5400+30:1800+30"]

1. e4 {[%emt 0:00:00]} e5 {[%emt 0:00:00]} 2. Nf3 {[%emt 0:00:00]} Nc6 {[%emt 0:00:00]} 3. Bb5 {[%emt 0:00:32]} g6 {[%emt 0:00:14]} 4. O-O {[%emt 0:02:58]} Bg7 {[%emt 0:00:16]} 5. c3 {[%emt 0:00:53]} a6 {[%emt 0:00:37]} 6. Ba4 {[%emt 0:01:17]} Nge7 {[%emt 0:00:19]} 7. d4 {[%emt 0:01:21]} exd4 {[%emt 0:01:14]} 8. cxd4 {[%emt 0:00:36]} O-O {[%emt 0:08:00]} 9. d5 {[%emt 0:09:24]} Na5 {[%emt 0:00:13]} 10. Qe2 {[%emt 0:03:30]} b5 {[%emt 0:02:14]} 11. Bc2 {[%emt 0:00:27]} d6 {[%emt 0:09:35]} 12. Nc3 {[%emt 0:10:01]} Bb7 {[%emt 0:09:06]} 13. Rd1 {[%emt 0:06:16]} Qd7 {[%emt 0:07:25]} 14. e5 {[%emt 0:09:23]} Rae8 {[%emt 0:12:22]} 15. e6 {[%emt 0:13:19]} fxe6 {[%emt 0:04:07]} 16. dxe6 {[%emt 0:00:27]} Qc8 {[%emt 0:01:52]} 17. Ng5 {[%emt 0:03:15]} Nec6 {[%emt 0:11:54]} 18. Qg4 {[%emt 0:09:19]} Ne5 {[%emt 0:10:03]} 19. Qh3 {[%emt 0:01:22]} h6 {[%emt 0:02:01]} 20. Nf7 {[%emt 0:01:16]} Nxf7 {[%emt 0:00:50]} 21. exf7+ {[%emt 0:00:05]} Kxf7 {[%emt 0:00:57]} 22. Qh4 {[%emt 0:02:39]} Re5 {[%emt 0:07:07]} 23. Qg3 {[%emt 0:03:09]} Re6 {[%emt 0:03:23]} 24. a4 {[%emt 0:02:01]} Rfe8 {[%emt 0:02:19]} 25. Be3 {[%emt 0:05:43]} Nc4 {[%emt 0:03:52]} 26. Bb3 {[%emt 0:04:35]} Be5 {[%emt 0:01:32]} 27. Qh3 {[%emt 0:02:30]} Bc6 {[%emt 0:01:01]} 28. axb5 {[%emt 0:00:43]} axb5 {[%emt 0:00:07]} 29. Rdc1 {[%emt 0:01:50]} g5 {[%emt 0:00:33]} 30. Nxb5 {[%emt 0:01:20]} Bxb5 {[%emt 0:00:39]} 31. Bxc4 {[%emt 0:01:11]} Bxc4 32. Rxc4 {[%emt 0:00:06]} d5 {[%emt 0:00:48]} 33. Rc2 {[%emt 0:01:22]} d4 {[%emt 0:00:47]} 34. Bd2 {[%emt 0:00:18]} Bf4 {[%emt 0:00:27]} 35. Qf3 {[%emt 0:01:25]} Kg7 {[%emt 0:00:41]} 36. g3 {[%emt 0:00:31]} Bxd2 {[%emt 0:00:37]} 37. Rxd2 {[%emt 0:00:03]} c5 {[%emt 0:00:43]} 38. Kg2 {[%emt 0:00:49]} Qd7 {[%emt 0:00:26]} 39. Ra5 {[%emt 0:00:56]} Rf6 {[%emt 0:00:21]} 40. Qd1 {[%emt 0:00:00]} Qc6+ {[%emt 0:00:00]} 41. Kg1 {[%emt 0:02:01]} Ra8 {[%emt 0:09:17]} 42. Rxa8 {[%emt 0:03:23]} Qxa8 {[%emt 0:00:11]} 43. Qg4 {[%emt 0:04:26]} Ra6 {[%emt 0:13:16]} 44. Qd7+ {[%emt 0:08:33]} Kg6 {[%emt 0:01:35]} 45. Rd1 {[%emt 0:00:41]} Ra1 {[%emt 0:00:41]} 46. Qe6+ {[%emt 0:00:15]} Kg7 {[%emt 0:00:18]} 47. Qe7+ {[%emt 0:00:14]} Kg6 {[%emt 0:00:06]} 48. Qe6+ {[%emt 0:00:16]} 1/2-1/2

[Event "EYCC Open-U14 2019"]
[Site "Bratislava"]
[Date "2019.08.06"]
[Round "5.35"]
[White "Kalosha, Zhiulien Oleksii"]
[Black "Sosovicka, Jakub"]
[Result "1-0"]
[ECO "B90"]
[WhiteElo "1936"]
[BlackElo "2097"]
[Annotator "NA"]
[PlyCount "101"]
[EventDate "2019.08.02"]
[EventType "swiss"]
[EventCountry "SVK"]
[SourceTitle "playchess.com"]
[Source "ChessBase"]
[SourceQuality "1"]
[TimeControl "40/5400+30:1800+30"]

1. e4 {[%emt 0:00:00]} c5 {[%emt 0:00:00]} 2. Nf3 {[%emt 0:00:00]} d6 {[%emt 0:00:00]} 3. d4 {[%emt 0:00:00]} cxd4 {[%emt 0:00:00]} 4. Nxd4 {[%emt 0:00:00]} Nf6 {[%emt 0:00:00]} 5. Nc3 {[%emt 0:00:00]} a6 {[%emt 0:00:06]} 6. f3 {[%emt 0:00:00]} e5 {[%emt 0:00:21]} 7. Nb3 {[%emt 0:00:15]} Be6 {[%emt 0:00:22]} 8. Be3 {[%emt 0:00:21]} Nc6 {[%emt 0:00:24]} 9. Nd5 {[%emt 0:01:09]} Bxd5 {[%emt 0:00:37]} 10. exd5 {[%emt 0:00:08]} Ne7 11. c4 {[%emt 0:01:42]} g6 {[%emt 0:01:08]} 12. Bd3 {[%emt 0:03:19]} Bg7 {[%emt 0:00:10]} 13. Qd2 {[%emt 0:00:10]} O-O {[%emt 0:04:16]} 14. O-O {[%emt 0:00:36]} b5 {[%emt 0:07:49]} 15. a4 {[%emt 0:04:48]} bxc4 {[%emt 0:06:09]} 16. Bxc4 {[%emt 0:00:12]} Qd7 {[%emt 0:04:07]} 17. Na5 {[%emt 0:04:42]} Nf5 {[%emt 0:16:25]} 18. b4 {[%emt 0:08:13]} e4 {[%emt 0:05:22]} 19. Ra3 {[%emt 0:02:17]} exf3 {[%emt 0:03:04]} 20. Rxf3 {[%emt 0:01:48]} Ng4 {[%emt 0:07:24]} 21. Nc6 {[%emt 0:07:25]} Ngxe3 {[%emt 0:05:24]} 22. Raxe3 {[%emt 0:01:05]} Bh6 {[%emt 0:06:40]} 23. Re7 {[%emt 0:23:10]} Nxe7 {[%emt 0:06:39]} 24. Qxh6 {[%emt 0:01:05]} Nxc6 {[%emt 0:09:25]} 25. dxc6 {[%emt 0:00:42]} Qa7+ {[%emt 0:00:56]} 26. Kh1 {[%emt 0:06:09]} Qd4 {[%emt 0:02:51]} 27. Qf4 {[%emt 0:02:10]} Qxf4 {[%emt 0:01:26]} 28. Rxf4 {[%emt 0:00:02]} Ra7 {[%emt 0:03:33]} 29. Kg1 {[%emt 0:01:35]} Rb8 {[%emt 0:01:07]} 30. b5 {[%emt 0:01:03]} d5 {[%emt 0:03:11]} 31. Bd3 {[%emt 0:00:46]} axb5 {[%emt 0:01:21]} 32. axb5 {[%emt 0:00:20]} Kf8 {[%emt 0:02:28]} 33. Rd4 {[%emt 0:00:45]} Ke7 {[%emt 0:01:05]} 34. Rxd5 {[%emt 0:00:15]} Ke6 {[%emt 0:02:21]} 35. Bc4 {[%emt 0:00:15]} Ke7 {[%emt 0:00:21]} 36. Kf2 {[%emt 0:00:34]} Rd8 {[%emt 0:00:51]} 37. Rxd8 {[%emt 0:01:56]} Kxd8 {[%emt 0:00:01]} 38. b6 {[%emt 0:00:08]} Ra4 {[%emt 0:00:55]} 39. Bd3 {[%emt 0:05:24]} Kc8 {[%emt 0:00:21]} 40. Ke3 {[%emt 0:00:00]} Kb8 {[%emt 0:00:00]} 41. Bb5 {[%emt 0:01:24]} Ra5 {[%emt 0:03:54]} 42. c7+ {[%emt 0:05:37]} Kb7 {[%emt 0:09:18]} 43. Bd7 {[%emt 0:00:53]} Ra8 {[%emt 0:00:42]} 44. c8=Q+ {[%emt 0:03:45]} Rxc8 {[%emt 0:00:04]} 45. Bxc8+ {[%emt 0:00:06]} Kxc8 {[%emt 0:00:06]} 46. Kd4 {[%emt 0:00:05]} f5 {[%emt 0:07:13]} 47. Ke5 {[%emt 0:00:50]} Kb7 {[%emt 0:00:13]} 48. Kf6 {[%emt 0:01:16]} Kxb6 {[%emt 0:01:35]} 49. h4 {[%emt 0:00:09]} Kc6 {[%emt 0:00:21]} 50. Kg7 {[%emt 0:00:11]} Kd5 {[%emt 0:00:20]} 51. Kxh7 {[%emt 0:00:13]} 1-0

[Event "EYCC Open-U14 2019"]
[Site "Bratislava"]
[Date "2019.08.06"]
[Round "5.36"]
[White "Antal, Hunor-Zoltan"]
[Black "Sobek, Michal"]
[Result "1/2-1/2"]
[ECO "A48"]
[WhiteElo "1980"]
[BlackElo "2101"]
[Annotator "NA"]
[PlyCount "43"]
[EventDate "2019.08.02"]
[EventType "swiss"]
[EventCountry "SVK"]
[SourceTitle "playchess.com"]
[Source "ChessBase"]
[SourceQuality "1"]
[TimeControl "40/5400+30:1800+30"]

1. d4 {[%emt 0:00:00]} Nf6 {[%emt 0:00:00]} 2. Nf3 {[%emt 0:00:00]} g6 {[%emt 0:00:00]} 3. c4 {[%emt 0:00:00]} c5 {[%emt 0:00:00]} 4. d5 {[%emt 0:00:00]} b5 {[%emt 0:00:00]} 5. Bg5 {[%emt 0:00:08]} Bg7 {[%emt 0:00:48]} 6. Nbd2 {[%emt 0:02:03]} d6 {[%emt 0:01:15]} 7. e4 {[%emt 0:02:08]} Qa5 {[%emt 0:05:48]} 8. Qc2 {[%emt 0:00:38]} Na6 {[%emt 0:04:10]} 9. a3 {[%emt 0:03:59]} h6 {[%emt 0:17:25]} 10. Bf4 {[%emt 0:03:36]} Rb8 {[%emt 0:00:41]} 11. cxb5 {[%emt 0:01:55]} Nc7 {[%emt 0:02:50]} 12. b4 {[%emt 0:07:00]} cxb4 {[%emt 0:00:11]} 13. Nb3 {[%emt 0:00:39]} Qa4 {[%emt 0:10:01]} 14. Qxc7 {[%emt 0:00:41]} Qxb3 {[%emt 0:00:13]} 15. Qxb8 {[%emt 0:01:15]} Qc3+ {[%emt 0:00:28]} 16. Ke2 {[%emt 0:00:37]} Qc4+ {[%emt 0:00:32]} 17. Kd1 {[%emt 0:00:45]} Qb3+ {[%emt 0:00:12]} 18. Ke1 {[%emt 0:01:12]} Qc3+ {[%emt 0:00:09]} 19. Ke2 {[%emt 0:00:06]} Qc4+ {[%emt 0:00:16]} 20. Kd1 {[%emt 0:00:54]} Qb3+ {[%emt 0:00:08]} 21. Ke1 {[%emt 0:04:05]} Qc3+ {[%emt 0:00:21]} 22. Ke2 {[%emt 0:00:07]} 1/2-1/2

[Event "EYCC Open-U14 2019"]
[Site "Bratislava"]
[Date "2019.08.06"]
[Round "5.37"]
[White "Dahl, Max"]
[Black "Ochedzan, Tymon"]
[Result "0-1"]
[ECO "A15"]
[WhiteElo "1981"]
[BlackElo "2037"]
[Annotator "NA"]
[PlyCount "152"]
[EventDate "2019.08.02"]
[EventType "swiss"]
[EventCountry "SVK"]
[SourceTitle "playchess.com"]
[Source "ChessBase"]
[SourceQuality "1"]
[TimeControl "40/5400+30:1800+30"]

1. c4 {[%emt 0:00:00]} Nf6 {[%emt 0:00:00]} 2. g3 {[%emt 0:00:00]} g6 {[%emt 0:00:08]} 3. Bg2 {[%emt 0:00:06]} Bg7 {[%emt 0:00:32]} 4. Nc3 {[%emt 0:00:34]} O-O {[%emt 0:01:03]} 5. e4 {[%emt 0:00:54]} d6 {[%emt 0:03:08]} 6. Nge2 {[%emt 0:01:14]} c5 {[%emt 0:02:09]} 7. O-O {[%emt 0:00:51]} Nc6 {[%emt 0:02:54]} 8. d3 {[%emt 0:02:53]} a6 {[%emt 0:02:08]} 9. a3 {[%emt 0:12:10]} Rb8 {[%emt 0:05:03]} 10. Rb1 {[%emt 0:03:40]} b5 {[%emt 0:04:21]} 11. cxb5 {[%emt 0:03:15]} axb5 {[%emt 0:00:20]} 12. b4 {[%emt 0:00:59]} cxb4 {[%emt 0:04:12]} 13. axb4 {[%emt 0:00:57]} Bd7 {[%emt 0:06:32]} 14. h3 {[%emt 0:20:18]} Qc8 {[%emt 0:07:32]} 15. Kh2 {[%emt 0:02:08]} Qa6 {[%emt 0:03:20]} 16. Be3 {[%emt 0:09:45]} Rfc8 {[%emt 0:06:13]} 17. Qd2 {[%emt 0:07:45]} Ra8 {[%emt 0:04:04]} 18. Rfc1 {[%emt 0:07:14]} Be6 {[%emt 0:05:56]} 19. Nd5 {[%emt 0:09:38]} Bxd5 {[%emt 0:12:57]} 20. exd5 {[%emt 0:00:17]} Ne5 {[%emt 0:02:11]} 21. f4 {[%emt 0:06:47]} Ned7 {[%emt 0:02:13]} 22. Nc3 {[%emt 0:06:46]} Nb6 {[%emt 0:03:25]} 23. Qf2 {[%emt 0:00:46]} Nfd7 {[%emt 0:04:07]} 24. Bd4 {[%emt 0:00:53]} Bxd4 {[%emt 0:06:01]} 25. Qxd4 {[%emt 0:00:06]} Qa3 {[%emt 0:00:34]} 26. Rc2 {[%emt 0:02:19]} Qa6 {[%emt 0:04:43]} 27. Ra2 {[%emt 0:00:35]} Qb7 {[%emt 0:02:09]} 28. Rxa8 {[%emt 0:00:25]} Qxa8 {[%emt 0:00:16]} 29. Ne4 {[%emt 0:00:39]} Qa2 {[%emt 0:01:58]} 30. Ra1 {[%emt 0:00:32]} Qe2 {[%emt 0:00:42]} 31. Rf1 {[%emt 0:00:29]} Qc2 {[%emt 0:02:02]} 32. Rf2 {[%emt 0:00:33]} Qb1 {[%emt 0:00:33]} 33. Nc3 {[%emt 0:00:29]} Qa1 {[%emt 0:01:25]} 34. Nxb5 {[%emt 0:00:26]} Qxd4 {[%emt 0:00:13]} 35. Nxd4 {[%emt 0:00:05]} Nf6 {[%emt 0:00:03]} 36. Rc2 {[%emt 0:00:27]} Rxc2 {[%emt 0:00:16]} 37. Nxc2 {[%emt 0:00:01]} Nfxd5 {[%emt 0:00:27]} 38. Bxd5 {[%emt 0:00:49]} Nxd5 {[%emt 0:00:05]} 39. Kg2 {[%emt 0:00:31]} Kf8 {[%emt 0:00:44]} 40. Kf3 {[%emt 0:00:00]} Ke8 {[%emt 0:00:00]} 41. g4 {[%emt 0:09:14]} Kd7 {[%emt 0:02:13]} 42. Ke4 {[%emt 0:02:57]} e6 {[%emt 0:04:19]} 43. f5 {[%emt 0:11:40]} g5 {[%emt 0:03:36]} 44. fxe6+ {[%emt 0:03:20]} fxe6 {[%emt 0:01:01]} 45. Kf3 {[%emt 0:03:03]} Nf4 {[%emt 0:04:11]} 46. h4 {[%emt 0:00:35]} Nxd3 {[%emt 0:00:40]} 47. hxg5 {[%emt 0:00:13]} d5 {[%emt 0:00:39]} 48. b5 {[%emt 0:03:07]} e5 {[%emt 0:05:12]} 49. Ke3 {[%emt 0:01:22]} Nc5 {[%emt 0:01:39]} 50. Ne1 {[%emt 0:00:40]} d4+ {[%emt 0:01:17]} 51. Ke2 {[%emt 0:00:17]} e4 {[%emt 0:01:24]} 52. Ng2 {[%emt 0:00:33]} Ne6 {[%emt 0:02:01]} 53. Nh4 {[%emt 0:00:35]} Nxg5 {[%emt 0:00:45]} 54. Nf5 {[%emt 0:00:12]} Nf3 {[%emt 0:02:37]} 55. b6 {[%emt 0:00:54]} d3+ {[%emt 0:01:42]} 56. Ke3 {[%emt 0:00:30]} Ng5 {[%emt 0:02:38]} 57. Nd4 {[%emt 0:00:29]} Kc8 {[%emt 0:00:42]} 58. Nb3 {[%emt 0:00:30]} Kb7 {[%emt 0:01:21]} 59. Nc5+ {[%emt 0:00:19]} Kxb6 {[%emt 0:00:06]} 60. Nxd3 {[%emt 0:00:18]} exd3 {[%emt 0:00:17]} 61. Kxd3 {[%emt 0:00:04]} Kc5 {[%emt 0:01:17]} 62. Ke3 {[%emt 0:00:06]} Ne6 {[%emt 0:01:24]} 63. Ke4 {[%emt 0:00:08]} Kd6 {[%emt 0:00:09]} 64. Kf5 {[%emt 0:00:05]} Ke7 {[%emt 0:00:09]} 65. Ke5 {[%emt 0:00:26]} Kf7 {[%emt 0:00:22]} 66. Kf5 {[%emt 0:00:09]} h6 {[%emt 0:00:26]} 67. Ke5 {[%emt 0:00:04]} Kg6 {[%emt 0:00:30]} 68. Kxe6 {[%emt 0:00:06]} Kg5 {[%emt 0:00:05]} 69. Ke5 {[%emt 0:00:06]} Kxg4 {[%emt 0:00:03]} 70. Ke4 {[%emt 0:00:07]} h5 {[%emt 0:00:09]} 71. Ke3 {[%emt 0:00:03]} Kg3 {[%emt 0:00:04]} 72. Ke2 {[%emt 0:00:05]} Kg2 {[%emt 0:00:03]} 73. Ke3 {[%emt 0:00:05]} h4 {[%emt 0:00:04]} 74. Kf4 {[%emt 0:00:03]} h3 {[%emt 0:00:04]} 75. Ke3 {[%emt 0:00:03]} h2 {[%emt 0:00:17]} 76. Kd4 {[%emt 0:00:12]} h1=Q {[%emt 0:00:10]} 0-1

[Event "EYCC Open-U14 2019"]
[Site "Bratislava"]
[Date "2019.08.06"]
[Round "5.38"]
[White "Cappelletto, Joshuaede"]
[Black "Farkas, Otto Jr."]
[Result "1-0"]
[ECO "B04"]
[WhiteElo "2138"]
[BlackElo "1913"]
[Annotator "NA"]
[PlyCount "49"]
[EventDate "2019.08.02"]
[EventType "swiss"]
[EventCountry "SVK"]
[SourceTitle "playchess.com"]
[Source "ChessBase"]
[SourceQuality "1"]
[TimeControl "40/5400+30:1800+30"]

1. e4 {[%emt 0:00:00]} Nf6 {[%emt 0:00:00]} 2. e5 {[%emt 0:00:00]} Nd5 {[%emt 0:00:00]} 3. d4 {[%emt 0:00:08]} d6 {[%emt 0:00:00]} 4. Nf3 {[%emt 0:00:09]} g6 {[%emt 0:00:00]} 5. c4 {[%emt 0:01:18]} Nb6 {[%emt 0:00:00]} 6. h3 {[%emt 0:01:53]} Bg7 {[%emt 0:00:11]} 7. Nc3 {[%emt 0:01:11]} O-O {[%emt 0:00:59]} 8. exd6 {[%emt 0:00:17]} cxd6 {[%emt 0:00:05]} 9. Be2 {[%emt 0:00:12]} Bf5 {[%emt 0:02:37]} 10. O-O {[%emt 0:00:40]} d5 {[%emt 0:01:12]} 11. c5 {[%emt 0:03:31]} Nc8 {[%emt 0:00:09]} 12. Qb3 {[%emt 0:00:12]} Qd7 {[%emt 0:22:55]} 13. Qxd5 {[%emt 0:09:04]} Qxd5 {[%emt 0:01:37]} 14. Nxd5 {[%emt 0:00:12]} Nc6 {[%emt 0:02:18]} 15. Be3 {[%emt 0:00:21]} Rd8 {[%emt 0:01:07]} 16. Nc7 {[%emt 0:25:00]} Rb8 {[%emt 0:03:00]} 17. Rfd1 {[%emt 0:01:52]} Be4 {[%emt 0:08:20]} 18. Ng5 {[%emt 0:01:53]} Bf5 {[%emt 0:01:27]} 19. g4 {[%emt 0:04:23]} Bc2 {[%emt 0:03:40]} 20. Rd2 {[%emt 0:03:06]} h6 {[%emt 0:01:26]} 21. Nxf7 {[%emt 0:01:54]} Kxf7 {[%emt 0:00:07]} 22. Bc4+ {[%emt 0:00:14]} Kf6 {[%emt 0:00:33]} 23. Rxc2 {[%emt 0:01:26]} Nxd4 {[%emt 0:02:37]} 24. Bxd4+ {[%emt 0:01:20]} Rxd4 {[%emt 0:00:18]} 25. Ne8+ {[%emt 0:00:07]} 1-0

[Event "EYCC Open-U14 2019"]
[Site "Bratislava"]
[Date "2019.08.06"]
[Round "5.39"]
[White "Talibov, Shiroghlan"]
[Black "Paduano, Claudio"]
[Result "1-0"]
[ECO "A18"]
[WhiteElo "1882"]
[BlackElo "2037"]
[Annotator "NA"]
[PlyCount "77"]
[EventDate "2019.08.02"]
[EventType "swiss"]
[EventCountry "SVK"]
[SourceTitle "playchess.com"]
[Source "ChessBase"]
[SourceQuality "1"]
[TimeControl "40/5400+30:1800+30"]

1. c4 {[%emt 0:00:00]} Nf6 {[%emt 0:01:44]} 2. Nc3 {[%emt 0:00:00]} e6 {[%emt 0:00:37]} 3. e4 {[%emt 0:00:00]} d5 {[%emt 0:07:53]} 4. cxd5 {[%emt 0:00:54]} exd5 {[%emt 0:01:18]} 5. e5 {[%emt 0:00:08]} Nfd7 {[%emt 0:16:17]} 6. d4 {[%emt 0:00:33]} c5 {[%emt 0:13:32]} 7. f4 {[%emt 0:14:35]} cxd4 {[%emt 0:35:20]} 8. Qxd4 {[%emt 0:00:25]} Nb6 {[%emt 0:02:28]} 9. Nf3 {[%emt 0:10:17]} Nc6 {[%emt 0:06:17]} 10. Bb5 {[%emt 0:01:00]} Bd7 {[%emt 0:03:30]} 11. Qd1 {[%emt 0:05:12]} Bc5 {[%emt 0:03:24]} 12. a3 {[%emt 0:01:56]} a6 {[%emt 0:03:00]} 13. Be2 {[%emt 0:01:14]} Be6 {[%emt 0:00:38]} 14. b4 {[%emt 0:00:46]} Be7 {[%emt 0:00:27]} 15. O-O {[%emt 0:00:41]} d4 {[%emt 0:00:31]} 16. Ne4 {[%emt 0:03:07]} Nc4 {[%emt 0:00:32]} 17. f5 {[%emt 0:21:03]} Bd5 {[%emt 0:00:26]} 18. f6 {[%emt 0:03:38]} gxf6 {[%emt 0:00:32]} 19. exf6 {[%emt 0:01:24]} Bxf6 {[%emt 0:00:31]} 20. Nxf6+ {[%emt 0:01:39]} Qxf6 {[%emt 0:00:02]} 21. Bg5 {[%emt 0:09:42]} Qg7 {[%emt 0:00:57]} 22. Bxc4 {[%emt 0:00:20]} Bxc4 {[%emt 0:00:22]} 23. Re1+ {[%emt 0:00:54]} Be6 {[%emt 0:00:40]} 24. Qd2 {[%emt 0:01:23]} Rg8 {[%emt 0:00:30]} 25. a4 Qg6 {[%emt 0:00:30]} 26. b5 {[%emt 0:01:58]} Nb8 {[%emt 0:00:30]} 27. Qb4 {[%emt 0:00:24]} Qxg5 {[%emt 0:00:30]} 28. Nxg5 {[%emt 0:00:10]} Rxg5 {[%emt 0:00:28]} 29. bxa6 {[%emt 0:00:06]} Rxa6 {[%emt 0:00:32]} 30. Qxb7 {[%emt 0:00:05]} Kf8 {[%emt 0:00:31]} 31. Qxb8+ {[%emt 0:00:24]} Kg7 {[%emt 0:00:19]} 32. Qf4 {[%emt 0:00:18]} Raa5 {[%emt 0:00:40]} 33. Qxd4+ {[%emt 0:00:07]} Kg8 {[%emt 0:00:30]} 34. Rxe6 {[%emt 0:00:09]} fxe6 {[%emt 0:00:29]} 35. Qd7 {[%emt 0:00:06]} Rae5 {[%emt 0:00:31]} 36. Rb1 {[%emt 0:00:14]} Rgf5 {[%emt 0:00:30]} 37. Rb8+ {[%emt 0:00:15]} Rf8 {[%emt 0:00:31]} 38. Rxf8+ {[%emt 0:00:04]} Kxf8 {[%emt 0:00:27]} 39. Qd6+ {[%emt 0:00:02]} 1-0